bitfinex-derivatives/quotes_ETHF0:USTF0_20250130
["timestamp","ask_amount","ask_price","bid_price","bid_amount"]
[1738196014977,0.64875618,3106.1,3105.8,0.64398]
[1738196015778,0.00482618,3106.1,3105.5,0.00482618]
[1738196016091,0.64874618,3106.1,3105.8,0.64397]
[1738196016281,0.00482618,3106.1,3105.8,0.64397]
[1738196016982,0.00482618,3106.1,3105.9,0.64396]
[1738196017279,0.00482618,3106.1,3106.0,1.0822]
[1738196017484,0.00482618,3106.1,3106.0,1.5946]
[1738196017679,0.00482618,3106.1,3106.0,2.23854]
[1738196018077,0.00482618,3106.1,3106.0,1.5946]
[1738196018382,0.00482618,3106.1,3105.5,0.64885618]
[1738196018591,0.64402,3105.7,3105.6,0.5369]
[1738196019486,0.644,3105.8,3105.6,0.5369]
[1738196019679,0.644,3105.7,3105.6,0.5369]
[1738196019991,0.64399,3105.8,3105.6,0.5369]
[1738196020690,0.644,3105.7,3105.6,0.5369]
[1738196021091,3.85178,3105.9,3105.6,1.18092]
[1738196021786,3.2078,3105.9,3105.6,0.5369]
[1738196021992,3.2078,3105.9,3105.7,0.644]
[1738196022294,3.85176,3105.9,3105.6,1.18091]
[1738196022487,3.2078,3105.9,3105.7,0.644]
[1738196022678,3.2078,3105.9,3105.6,0.5369]
[1738196022883,3.85177,3105.9,3105.6,1.18092]
[1738196023382,0.64398,3105.8,3105.6,0.5369]
[1738196023685,3.85177,3105.9,3105.6,1.18092]
[1738196025093,3.85177,3105.9,3105.6,0.5369]
[1738196026087,3.85176,3105.9,3105.6,1.18091]
[1738196026293,3.2078,3105.9,3105.8,0.64398]
[1738196030897,0.00482618,3106.1,3106.0,0.64394]
[1738196031395,0.00482618,3106.1,3105.7,3.2078]
[1738196031396,0.64398,3105.9,3105.7,3.8518]
[1738196031584,0.64398,3105.8,3105.7,3.2078]
[1738196033794,0.64398,3105.8,3105.7,3.8518]
[1738196033991,0.64397,3105.9,3105.7,3.8518]
[1738196035893,0.64398,3105.8,3105.7,3.8518]
[1738196036602,0.64398,3105.8,3105.6,1.18092]
[1738196037997,0.644,3105.7,3105.6,0.5369]
[1738196039799,0.64394,3106.0,3105.8,0.64397]
[1738196039999,0.64394,3106.0,3105.9,1.14726]
[1738196040296,3.21262618,3106.1,3105.9,0.5033]
[1738196040598,0.00482618,3106.1,3106.0,1.15634]
[1738196041101,0.00482618,3106.1,3106.0,0.5124]
[1738196041497,0.00482618,3106.1,3106.0,1.15634]
[1738196041702,0.64394,3106.0,3105.9,0.5033]
[1738196044904,1.15624,3106.0,3105.9,0.5033]
[1738196045098,0.5123,3106.0,3105.9,0.5033]
[1738196045897,1.15624,3106.0,3105.9,0.5033]
[1738196048312,1.66994,3106.0,3105.9,0.5033]
[1738196049911,1.026,3106.0,3105.7,0.5052]
[1738196050107,0.64398,3105.8,3105.7,0.5052]
[1738196050305,1.026,3106.0,3105.6,0.5448]
[1738196050503,1.026,3106.0,3105.5,0.00482618]
[1738196050504,5.29968406,3106.0,3105.5,0.00482618]
[1738196050703,0.64402,3105.6,3105.5,0.00482618]
[1738196054415,5.99202,3105.6,3105.5,0.00482618]
[1738196059314,0.64416,3105.0,3104.8,0.5405]
[1738196060422,0.64417,3104.9,3104.8,0.5405]
[1738196062724,2.66382406,3105.1,3103.9,3.2078]
[1738196063021,0.64423,3104.6,3104.4,0.64426]
[1738196063224,0.64423,3104.6,3104.5,0.5032]
[1738196064717,0.64419,3104.8,3104.6,0.64423]
[1738196064916,0.64419,3104.8,3104.6,1.67903]
[1738196065825,0.64421,3104.7,3104.6,1.0348]
[1738196066123,0.6442,3104.8,3104.6,1.67902]
[1738196066318,6.811,3105.5,3104.6,1.67902]
[1738196066319,0.6441,3105.3,3104.7,5.87162406]
[1738196066525,0.64408,3105.4,3104.7,5.87162406]
[1738196066720,0.64411,3105.2,3104.7,5.87162406]
[1738196066920,0.64411,3105.2,3105.0,0.64414]
[1738196067226,1.18346,3105.5,3105.2,0.64409]
[1738196067424,0.64407,3105.4,3105.3,1.6117]
[1738196068528,0.5394,3105.5,3105.3,1.6117]
[1738196068828,0.64407,3105.4,3105.3,1.6117]
[1738196069722,0.6441,3105.3,3105.0,0.64414]
[1738196070930,5.87162406,3105.7,3104.8,1.5562]
[1738196071128,0.64401,3105.7,3105.4,0.64406]
[1738196071329,4.67752406,3106.0,3105.5,0.5109]
[1738196071530,0.64397,3105.9,3105.6,1.66301]
[1738196071737,0.64398,3105.8,3105.6,1.66301]
[1738196072028,0.64398,3105.8,3105.6,1.019]
[1738196072928,0.5527,3106.0,3105.6,1.019]
[1738196073130,0.00482618,3106.1,3106.0,0.64394]
[1738196073426,0.00482618,3106.1,3105.6,3.68282406]
[1738196073427,0.00482618,3106.1,3105.8,0.64397]
[1738196073632,0.00482618,3106.1,3105.7,0.64399]
[1738196073633,0.64395,3106.0,3105.7,0.64399]
[1738196074426,0.00482618,3106.1,3105.6,1.019]
[1738196074729,0.644,3105.7,3105.6,1.019]
[1738196074930,3.21262618,3106.1,3105.6,1.66302]
[1738196074931,0.64398,3105.9,3105.6,1.66302]
[1738196075332,0.64399,3105.8,3105.6,1.019]
[1738196075532,0.644,3105.7,3105.6,1.019]
[1738196076035,0.64399,3105.8,3105.6,1.66302]
[1738196076429,0.64399,3105.8,3105.6,1.019]
[1738196076831,0.644,3105.7,3105.6,1.019]
[1738196077428,2.66382406,3106.0,3105.5,0.5109]
[1738196077633,1.15502,3105.6,3105.5,0.5109]
[1738196078033,20.05502,3105.6,3105.5,0.5109]
[1738196078534,1.15502,3105.6,3105.5,0.5109]
[1738196080423,0.511,3105.6,3105.5,0.5109]
[1738196080630,0.64401,3105.7,3105.5,0.5109]
[1738196081831,3.21262618,3106.1,3105.7,0.64399]
[1738196082132,0.00482618,3106.1,3106.0,0.64394]
[1738196082340,0.00482618,3106.1,3106.0,2.25794]
[1738196084528,0.64383,3106.6,3106.4,0.64385]
[1738196084729,0.64385,3106.5,3106.1,0.64392]
[1738196084936,0.64386,3106.4,3106.2,0.64389]
[1738196085432,3.2078,3106.7,3106.2,2.66382406]
[1738196085637,0.64373,3107.1,3106.8,0.64377]
[1738196085834,3.2078,3107.6,3106.8,2.66382406]
[1738196086034,0.00482618,3107.4,3107.3,0.64367]
[1738196086832,0.00482618,3107.4,3107.1,3.30752406]
[1738196087030,0.00482618,3107.4,3106.9,1.0546]
[1738196087642,3.21262618,3107.4,3106.9,1.0546]
[1738196087843,0.64369,3107.3,3106.9,1.69835]
[1738196088037,0.6437,3107.2,3107.0,0.5125]
[1738196088335,0.64368,3107.3,3107.0,1.15623]
[1738196088835,0.64379,3106.8,3106.5,0.64383]
[1738196089035,0.64371,3107.1,3106.5,2.23034]
[1738196089342,2.66382406,3106.9,3106.4,3.2078]
[1738196089532,0.64386,3106.4,3106.2,0.64389]
[1738196089729,2.66382406,3106.9,3106.2,0.6439]
[1738196089933,0.64385,3106.5,3106.2,0.6439]
[1738196090139,19.54385,3106.5,3106.3,0.64388]
[1738196090337,18.9,3106.5,3106.3,0.64388]
[1738196090646,0.64384,3106.6,3106.3,0.64388]
[1738196091143,19.54384,3106.6,3106.3,0.64388]
[1738196091437,0.64384,3106.5,3106.2,0.64389]
[1738196091741,0.64383,3106.6,3106.3,0.64387]
[1738196092840,0.5111,3106.7,3106.2,0.64389]
[1738196092841,0.64385,3106.5,3106.2,0.64389]
[1738196095146,0.64386,3106.4,3106.2,0.64389]
[1738196095546,0.64386,3106.4,3106.1,0.64873618]
[1738196097249,0.64386,3106.4,3106.2,0.64389]
[1738196097640,0.64386,3106.4,3106.3,0.5008]
[1738196098938,3.7163,3107.0,3106.3,0.5008]
[1738196099239,0.64379,3106.8,3106.5,0.64382]
[1738196099833,0.64377,3106.9,3106.6,0.64381]
[1738196100046,0.64378,3106.8,3106.5,0.64383]
[1738196100447,3.7163,3107.0,3106.4,0.53]
[1738196100638,0.5085,3107.0,3106.5,3.2078]
[1738196100840,0.6438,3106.7,3106.4,1.17385]
[1738196101041,3.7163,3107.0,3106.4,0.53]
[1738196101245,0.64379,3106.8,3106.5,0.64384]
[1738196101443,0.5031,3106.9,3106.4,0.53]
[1738196101649,3.16692406,3106.9,3106.3,0.5008]
[1738196101946,0.64386,3106.4,3106.1,3.21262618]
[1738196102142,0.64386,3106.4,3106.2,0.64389]
[1738196102544,0.6439,3106.2,3106.1,3.21262618]
[1738196103447,3.71552406,3106.3,3105.3,3.2078]
[1738196103750,3.71552406,3106.3,3104.8,3.2078]
[1738196103751,0.64412,3105.2,3104.8,3.2078]
[1738196103948,3.2078,3105.9,3105.0,2.66382406]
[1738196104246,0.5316,3106.3,3105.6,5.87162406]
[1738196104450,0.5201,3106.4,3106.3,0.64388]
[1738196104846,0.5201,3106.4,3106.1,0.64392]
[1738196105149,0.64392,3106.1,3106.0,3.2078]
[1738196105351,0.5201,3106.4,3106.0,3.2078]
[1738196105554,0.5201,3106.4,3106.2,0.6439]
[1738196105743,1.16397,3106.4,3106.1,0.64391]
[1738196106049,0.5201,3106.4,3106.2,0.64389]
[1738196106242,0.6439,3106.2,3106.0,3.85173]
[1738196106448,0.5201,3106.4,3106.0,3.2078]
[1738196106648,0.6439,3106.2,3106.0,3.2078]
[1738196106849,0.64392,3106.1,3106.0,3.2078]
[1738196107645,0.5201,3106.4,3106.0,3.2078]
[1738196108049,0.535,3106.6,3106.0,3.2078]
[1738196108249,0.64383,3106.6,3106.4,0.64385]
[1738196108455,0.64383,3106.6,3106.5,0.5144]
[1738196108647,3.21262618,3106.7,3106.0,3.2078]
[1738196108648,0.64388,3106.4,3106.0,3.2078]
[1738196108847,1.16788,3106.3,3106.1,0.64391]
[1738196109051,0.524,3106.3,3106.2,0.6439]
[1738196110150,0.524,3106.3,3106.0,3.7222]
[1738196110357,0.64392,3106.1,3106.0,3.2078]
[1738196110751,4.244,3106.2,3105.5,0.5144]
[1738196110954,0.64394,3106.1,3105.9,0.64395]
[1738196111146,0.524,3106.3,3105.5,0.5144]
[1738196111147,0.524,3106.3,3106.2,0.6439]
[1738196111350,0.64388,3106.3,3106.1,0.64391]
[1738196111661,0.64391,3106.2,3105.9,0.64394]
[1738196111853,0.5109,3106.5,3106.0,0.5495]
[1738196112059,0.64386,3106.4,3106.0,0.5495]
[1738196112360,0.64389,3106.3,3106.0,1.19343]
[1738196112556,0.5109,3106.5,3106.0,0.5495]
[1738196112852,3.2078,3106.3,3105.3,5.87162406]
[1738196113058,0.64406,3105.5,3105.3,3.2078]
[1738196113258,0.5109,3105.4,3105.3,3.2078]
[1738196113450,0.5109,3105.4,3105.3,3.85189]
[1738196114652,0.5109,3105.4,3105.3,0.64409]
[1738196114857,0.5109,3105.4,3105.0,2.66382406]
[1738196115161,0.5109,3105.4,3105.3,0.64409]
[1738196115547,0.5109,3105.4,3105.2,0.6441]
[1738196115548,1.15497,3105.4,3105.2,0.6441]
[1738196115755,1.15497,3105.4,3105.0,2.66382406]
[1738196115953,0.6441,3105.3,3105.1,0.64412]
[1738196116160,1.15498,3105.4,3105.1,0.64411]
[1738196116361,0.5109,3105.4,3105.1,0.64411]
[1738196116657,0.6441,3105.3,3105.1,0.64411]
[1738196117256,0.5109,3105.4,3104.9,1.5531]
[1738196117560,0.64412,3105.2,3105.0,0.64414]
[1738196117860,0.64409,3105.3,3104.9,1.5531]
[1738196118354,0.64409,3105.3,3105.1,0.64412]
[1738196118557,0.64415,3105.0,3104.9,1.0522]
[1738196118860,0.64415,3105.0,3104.9,0.5495]
[1738196119260,0.5495,3105.2,3104.6,1.17872]
[1738196119455,0.5495,3105.2,3104.6,1.17792]
[1738196119456,0.6442,3104.8,3104.6,1.17792]
[1738196119657,0.55432618,3105.2,3104.6,0.5337]
[1738196119853,0.6442,3104.8,3104.6,1.17792]
[1738196120259,0.55432618,3105.2,3104.6,0.5337]
[1738196120462,0.64418,3104.9,3104.7,0.64421]
[1738196120858,0.64421,3104.7,3104.6,0.5337]
[1738196121062,0.64425,3104.5,3104.4,3.2078]
[1738196121258,0.64425,3104.5,3104.3,0.64429]
[1738196121562,3.7452,3104.7,3104.3,0.64429]
[1738196122058,0.64426,3104.5,3104.2,1.72561]
[1738196122262,0.64424,3104.6,3104.3,0.64429]
[1738196122460,3.7452,3104.7,3104.2,1.0813]
[1738196122662,4.38943,3104.7,3104.2,1.0813]
[1738196122960,0.64423,3104.6,3104.3,0.64429]
[1738196123759,3.7452,3104.7,3104.2,1.0813]
[1738196123959,4.38942,3104.7,3104.3,0.64428]
[1738196124463,0.64423,3104.6,3104.3,0.64428]
[1738196124766,3.7452,3104.7,3104.2,1.0813]
[1738196125466,0.64428,3104.4,3104.2,1.0813]
[1738196125872,0.64426,3104.5,3104.2,1.72561]
[1738196126170,3.7452,3104.7,3104.2,1.0813]
[1738196126171,0.64428,3104.4,3104.2,1.0813]
[1738196126568,0.64424,3104.6,3104.3,0.64429]
[1738196126761,3.7452,3104.7,3104.2,1.0813]
[1738196126762,0.64426,3104.5,3104.2,1.7256]
[1738196127664,3.7452,3104.7,3104.3,0.64427]
[1738196128065,3.7452,3104.7,3104.2,1.0813]
[1738196128261,0.64429,3104.3,3104.2,1.0813]
[1738196128461,0.64429,3104.4,3104.2,1.0813]
[1738196128865,0.64429,3104.3,3104.2,1.0813]
[1738196129263,0.64428,3104.4,3104.2,1.0813]
[1738196129573,0.64429,3104.4,3104.2,1.0813]
[1738196129763,0.64429,3104.3,3104.2,1.0813]
[1738196130165,0.64428,3104.4,3104.2,0.5406]
[1738196130366,0.64428,3104.4,3104.2,2.20201]
[1738196130571,0.64428,3104.4,3104.2,1.5577]
[1738196130765,3.7452,3104.7,3104.2,1.5577]
[1738196130971,0.64426,3104.5,3104.2,2.202]
[1738196131171,0.64424,3104.6,3104.3,0.64428]
[1738196131666,3.7452,3104.7,3104.2,1.5577]
[1738196131667,3.2078,3104.7,3104.2,1.5577]
[1738196132273,3.85201,3104.7,3104.2,1.5577]
[1738196132669,3.85201,3104.7,3104.4,0.64426]
[1738196132869,3.2078,3104.7,3104.5,0.64424]
[1738196133169,0.64423,3104.6,3104.3,0.64428]
[1738196133367,0.64423,3104.6,3104.4,0.64427]
[1738196133569,3.85202,3104.7,3104.3,0.64429]
[1738196133771,3.85202,3104.7,3104.4,0.64426]
[1738196133979,3.2078,3104.7,3104.6,0.64423]
[1738196134486,3.2078,3105.1,3105.0,0.64415]
[1738196134778,0.00482618,3105.2,3105.1,0.64413]
[1738196134979,0.00482618,3105.2,3105.1,1.70313]
[1738196135385,0.64893618,3105.2,3105.1,1.059]
[1738196135582,0.64418,3104.9,3104.7,0.5439]
[1738196135784,0.00482618,3105.2,3104.7,0.5439]
[1738196135987,0.64416,3105.0,3104.7,1.1881]
[1738196136281,0.00482618,3105.2,3104.7,0.5439]
[1738196136689,0.00482618,3105.2,3105.1,0.64413]
[1738196137688,0.64893618,3105.2,3104.9,0.64415]
[1738196138087,0.00482618,3105.2,3105.0,1.0429]
[1738196138287,0.64413,3105.1,3105.0,1.0429]
[1738196138585,0.64413,3105.1,3104.7,3.85192406]
[1738196138790,0.64418,3104.9,3104.7,1.18811]
[1738196139179,0.00482618,3105.2,3104.7,0.5439]
[1738196139380,0.64415,3105.0,3104.8,0.64418]
[1738196139881,0.00482618,3105.2,3104.7,0.5439]
[1738196140087,0.64894618,3105.2,3105.0,0.64414]
[1738196140289,0.64415,3105.1,3104.9,0.64416]
[1738196140484,0.00482618,3105.2,3104.7,3.20772406]
[1738196140682,0.64413,3105.1,3105.0,0.64414]
[1738196140886,0.00482618,3105.2,3105.1,0.64413]
[1738196141092,0.00482618,3105.2,3104.8,0.64419]
[1738196141387,0.00482618,3105.2,3104.7,3.20772406]
[1738196141587,0.64893618,3105.2,3105.0,0.64414]
[1738196142192,0.64893618,3105.2,3104.7,3.20772406]
[1738196142193,0.64413,3105.1,3104.7,3.20772406]
[1738196142385,0.64413,3105.1,3104.9,0.64417]
[1738196142889,0.64415,3105.0,3104.9,0.64417]
[1738196143199,0.64417,3104.9,3104.7,1.1881]
[1738196143877,0.64417,3104.9,3104.7,0.5439]
[1738196144087,3.2078,3105.0,3104.7,0.5439]
[1738196144388,3.85196,3105.0,3104.8,0.64418]
[1738196144587,3.85196,3105.0,3104.7,0.5439]
[1738196144889,0.64894618,3105.2,3105.0,0.64414]
[1738196145089,0.64413,3105.1,3105.0,0.64414]
[1738196145680,0.00482618,3105.2,3104.7,0.5439]
[1738196145881,0.00482618,3105.2,3105.1,0.64413]
[1738196148799,0.00482618,3105.2,3105.1,5.64413]
[1738196148998,1.14897,3106.4,3106.1,0.6439]
[1738196149188,0.64387,3106.4,3106.1,0.6439]
[1738196149491,3.7179,3106.5,3106.2,0.5538]
[1738196149492,0.64388,3106.3,3106.2,0.5538]
[1738196150593,3.7179,3106.5,3106.2,0.5538]
[1738196150793,0.64387,3106.4,3106.2,0.5538]
[1738196151589,4.36175,3106.5,3106.2,1.19769]
[1738196151795,0.00482618,3106.6,3106.5,0.64384]
[1738196151990,0.00482618,3106.6,3106.2,3.7616]
[1738196152399,0.00482618,3106.6,3106.2,0.5538]
[1738196152601,0.64384,3106.5,3106.2,0.5538]
[1738196152797,0.64384,3106.5,3106.2,1.19769]
[1738196153098,0.00482618,3106.6,3106.4,0.64385]
[1738196153299,0.00482618,3106.6,3106.5,0.5309]
[1738196154103,0.00482618,3106.6,3106.5,1.17474]
[1738196154302,0.00482618,3106.6,3106.5,1.69644]
[1738196156493,0.64369,3107.3,3106.5,1.0526]
[1738196156695,0.5434,3107.4,3106.7,2.66382406]
[1738196156998,0.64368,3107.3,3107.0,0.64372]
[1738196157305,3.2078,3107.5,3107.2,0.64368]
[1738196157598,3.2078,3107.5,3107.0,2.66382406]
[1738196157803,3.2078,3107.5,3106.8,0.5076]
[1738196158004,0.64371,3107.2,3106.9,0.64375]
[1738196159399,0.64373,3107.1,3106.8,0.5076]
[1738196159596,1.65763,3107.1,3106.8,0.5076]
[1738196160397,1.0139,3107.1,3106.8,0.5076]
[1738196160597,1.0139,3107.1,3106.9,0.64374]
[1738196160796,1.65761,3107.1,3106.8,1.15137]
[1738196161304,0.64376,3106.9,3106.6,3.85161]
[1738196161501,0.64379,3106.8,3106.6,3.2078]
[1738196161805,1.0139,3107.1,3106.6,3.2078]
[1738196162595,4.2217,3107.1,3106.3,0.5339]
[1738196163105,0.64375,3107.0,3106.7,0.64378]
[1738196163501,0.64379,3106.8,3106.4,0.64386]
[1738196164305,0.64384,3106.5,3106.3,1.17778]
[1738196164607,0.6438,3106.7,3106.5,0.64382]
[1738196164908,0.64381,3106.7,3106.5,0.64383]
[1738196165105,4.2217,3107.1,3106.3,0.5339]
[1738196165306,0.64382,3106.6,3106.4,0.64385]
[1738196165706,0.6438,3106.7,3106.5,0.64384]
[1738196165902,0.64378,3106.8,3106.6,0.64382]
[1738196166101,0.64384,3106.6,3106.3,1.17777]
[1738196166399,0.64388,3106.3,3106.2,3.2078]
[1738196166806,4.27316406,3107.0,3106.3,0.64388]
[1738196166807,0.64385,3106.5,3106.3,0.64388]
[1738196167005,2.66382406,3107.0,3106.2,3.2078]
[1738196167308,0.6438,3106.7,3106.2,3.2078]
[1738196167512,0.64382,3106.6,3106.4,0.64385]
[1738196168105,23.1217,3107.1,3106.4,0.64385]
[1738196168410,0.64378,3106.8,3106.6,0.64381]
[1738196169303,4.2217,3107.1,3106.2,4.299]
[1738196169503,4.2217,3107.1,3106.6,0.64381]
[1738196169806,0.64378,3106.8,3106.6,0.64381]
[1738196170011,0.64375,3107.0,3106.7,0.6438]
[1738196170507,0.64376,3106.9,3106.7,0.6438]
[1738196170708,4.2217,3107.1,3106.2,4.299]
[1738196170906,0.64377,3106.9,3106.6,0.6438]
[1738196171107,0.64377,3106.9,3106.7,0.6438]
[1738196171411,0.64374,3107.0,3106.8,0.64377]
[1738196171612,4.86542,3107.1,3106.8,0.64377]
[1738196171812,3.2078,3107.1,3107.0,0.64373]
[1738196172010,0.64365,3107.5,3107.0,2.66382406]
[1738196172011,3.2078,3107.5,3107.0,2.66382406]
[1738196172306,1.0821,3107.6,3107.3,2.66382406]
[1738196172500,0.5388,3107.6,3107.5,0.64363]
[1738196173007,0.5433,3107.9,3107.3,2.66382406]
[1738196173207,0.64358,3107.8,3107.5,0.64362]
[1738196173409,0.64358,3107.8,3107.3,2.66382406]
[1738196173410,0.64367,3107.4,3107.1,1.5846]
[1738196173710,3.20712406,3107.9,3106.9,0.64375]
[1738196173711,0.64372,3107.1,3106.9,0.64375]
[1738196174509,3.85148,3107.3,3107.0,0.64372]
[1738196174711,0.64372,3107.1,3106.8,0.64376]
[1738196175610,1.0549,3107.2,3106.8,0.64376]
[1738196175913,0.64374,3107.0,3106.8,0.64376]
[1738196176910,1.0549,3107.2,3106.4,2.66382406]
[1738196177114,1.0549,3107.2,3106.5,1.14982]
[1738196177316,0.6438,3106.7,3106.5,1.14982]
[1738196177701,0.6438,3106.7,3106.5,0.506]
[1738196177909,3.2078,3106.7,3105.9,0.00482618]
[1738196178113,3.2078,3106.7,3106.0,0.5081]
[1738196178114,0.5204,3106.6,3106.0,0.5081]
[1738196178310,0.64387,3106.4,3106.0,0.5081]
[1738196178607,0.5449,3106.5,3106.0,0.5081]
[1738196178916,0.64391,3106.2,3106.0,0.5081]
[1738196179615,0.64392,3106.1,3105.9,0.00482618]
[1738196179815,0.64394,3106.0,3105.9,0.00482618]
[1738196180313,0.5204,3106.1,3105.9,0.00482618]
[1738196180507,1.16433,3106.1,3105.9,0.00482618]
[1738196180711,0.64394,3106.0,3105.9,0.00482618]
[1738196181806,1.16433,3106.1,3105.9,0.00482618]
[1738196183316,3.2078,3106.3,3105.9,0.00482618]
[1738196183317,3.2078,3106.3,3106.0,0.64393]
[1738196183612,3.2078,3106.3,3106.1,0.64391]
[1738196183807,3.2078,3106.3,3106.0,0.64393]
[1738196184208,0.64386,3106.4,3106.0,0.64393]
[1738196184916,0.64387,3106.4,3106.0,0.64393]
[1738196185112,0.5449,3106.5,3106.1,2.66382406]
[1738196185313,0.5449,3106.5,3106.2,1.0513]
[1738196185815,0.5449,3106.5,3106.4,0.64386]
[1738196186015,0.5449,3106.5,3106.2,1.0513]
[1738196186016,0.5449,3106.5,3106.3,0.64387]
[1738196187515,0.5449,3106.5,3105.9,0.00482618]
[1738196187717,0.64391,3106.2,3105.9,0.00482618]
[1738196188315,0.64391,3106.2,3105.9,0.64878618]
[1738196188918,0.64389,3106.3,3106.0,0.64393]
[1738196189817,0.64391,3106.2,3105.9,0.64877618]
[1738196190114,0.64393,3106.1,3105.9,0.00482618]
[1738196190624,0.5449,3106.5,3105.9,0.00482618]
[1738196191311,0.64388,3106.3,3106.0,0.64393]
[1738196191513,1.18875,3106.5,3106.0,0.64394]
[1738196191813,0.6439,3106.3,3106.0,0.64393]
[1738196193616,0.6439,3106.2,3105.9,0.64877618]
[1738196194127,0.64389,3106.3,3106.0,0.64393]
[1738196194516,0.64391,3106.2,3105.9,0.64877618]
[1738196194817,0.64389,3106.3,3106.0,0.64392]
[1738196195015,3.8516,3106.7,3106.5,0.64384]
[1738196195216,3.8516,3106.7,3106.1,6.37762406]
[1738196195217,0.5497,3107.0,3106.6,1.17342]
[1738196195421,0.64376,3106.9,3106.6,1.17342]
[1738196195722,0.5497,3107.0,3106.7,0.506]
[1738196196028,0.64378,3106.8,3106.7,0.506]
[1738196196416,0.5497,3107.0,3106.7,0.506]
[1738196196719,0.5497,3107.0,3106.7,1.14979]
[1738196197217,0.64374,3107.0,3106.7,1.14979]
[1738196197417,0.64366,3107.4,3107.0,0.64373]
[1738196197619,0.64366,3107.4,3107.1,0.6437]
[1738196198324,0.555,3107.5,3106.8,0.5103]
[1738196198722,0.555,3107.5,3107.3,0.64366]
[1738196199020,0.555,3107.5,3107.4,0.5498]
[1738196199221,1.19863,3107.5,3107.4,0.5498]
[1738196199427,3.2078,3108.1,3107.5,0.64362]
[1738196199620,0.64356,3107.9,3107.6,0.64361]
[1738196199923,0.64357,3107.8,3107.5,0.64362]
[1738196201020,0.64841618,3107.7,3107.4,1.71294]
[1738196201214,0.00482618,3107.7,3107.5,0.64363]
[1738196202226,0.00482618,3107.7,3107.5,0.64362]
[1738196202630,0.00482618,3107.7,3107.4,1.0693]
[1738196202821,0.00482618,3107.7,3107.6,0.64361]
[1738196204230,0.00482618,3107.7,3107.6,3.30743406]
[1738196206035,5.87162406,3108.5,3107.6,3.30743406]
[1738196206036,3.2078,3108.5,3107.7,1.60898]
[1738196206327,3.2078,3108.5,3108.0,5.87162406]
[1738196206525,3.2078,3108.5,3108.4,0.64344]
[1738196208431,0.00482618,3108.8,3108.7,0.64338]
[1738196209530,0.00482618,3108.8,3108.7,1.15478]
[1738196212730,3.2078,3109.8,3108.7,6.15478]
[1738196212939,1.19768,3109.7,3109.4,0.64323]
[1738196213131,0.5545,3109.7,3109.1,2.66382406]
[1738196213326,0.5545,3109.7,3109.2,0.64328]
[1738196213636,0.64328,3109.3,3108.9,3.85113]
[1738196213839,0.5448,3109.2,3108.9,3.85113]
[1738196214023,0.5448,3109.2,3109.1,0.6433]
[1738196215824,0.00482618,3109.4,3109.1,0.6433]
[1738196216029,0.00482618,3109.4,3108.9,3.2078]
[1738196216227,0.64806618,3109.4,3108.9,3.2078]
[1738196216439,0.00482618,3109.4,3108.9,3.2078]
[1738196216629,0.00482618,3109.4,3109.2,0.64328]
[1738196217324,0.00482618,3109.4,3108.9,3.2078]
[1738196217535,0.00482618,3109.4,3109.1,0.64329]
[1738196217736,3.2078,3109.2,3109.0,0.64331]
[1738196217937,3.2078,3109.2,3108.9,0.64332]
[1738196217938,0.549,3109.1,3108.9,0.64332]
[1738196218233,0.549,3109.1,3108.7,0.5114]
[1738196218234,1.1028,3109.1,3108.7,0.5114]
[1738196218433,1.1028,3109.1,3109.0,0.64332]
[1738196221133,0.00482618,3109.4,3109.0,3.2078]
[1738196221333,0.00482618,3109.4,3109.3,0.64326]
[1738196221938,0.00482618,3109.4,3109.0,3.2078]
[1738196222143,0.64326,3109.3,3109.0,3.8511]
[1738196222436,0.64806618,3109.4,3109.2,0.64327]
[1738196222643,0.64806618,3109.4,3109.1,0.64329]
[1738196223033,0.64329,3109.2,3108.7,0.64338]
[1738196223237,1.184,3109.1,3108.9,0.64333]
[1738196223434,0.5407,3109.1,3108.9,0.64333]
[1738196223637,3.7599,3109.0,3108.1,0.00482618]
[1738196224036,3.7599,3109.0,3108.2,2.66382406]
[1738196224237,3.7599,3109.0,3108.8,0.64335]
[1738196224433,3.2078,3109.0,3108.9,0.64334]
[1738196224636,0.5407,3109.1,3109.0,0.64332]
[1738196226237,0.5407,3109.1,3109.0,1.18082]
[1738196227844,0.5407,3109.1,3109.0,0.64332]
[1738196229943,0.64332,3109.0,3108.8,3.85115]
[1738196230142,0.5407,3109.1,3109.0,0.64332]
[1738196230742,0.5407,3109.1,3108.9,0.64333]
[1738196230939,1.18402,3109.1,3108.5,3.71612406]
[1738196231247,0.5407,3109.1,3109.0,0.64332]
[1738196231747,1.184,3109.1,3108.9,0.64333]
[1738196232340,1.184,3109.1,3109.0,0.64332]
[1738196232744,1.184,3109.1,3108.5,3.71612406]
[1738196233043,0.64333,3109.0,3108.5,3.16442406]
[1738196233345,4.39181,3109.1,3108.9,0.64334]
[1738196233640,0.64334,3109.0,3108.5,3.16442406]
[1738196233847,0.64334,3109.0,3108.8,0.64335]
[1738196234754,0.64339,3108.7,3108.5,0.64341]
[1738196235048,0.64339,3108.7,3108.4,3.2078]
[1738196235049,3.7485,3109.1,3108.4,3.2078]
[1738196235346,0.64336,3108.9,3108.6,0.64339]
[1738196235541,3.7485,3109.1,3108.4,3.2078]
[1738196235739,3.7485,3109.1,3108.7,0.64337]
[1738196235942,0.64335,3108.9,3108.4,3.2078]
[1738196236142,0.64333,3109.0,3108.8,0.64336]
[1738196236346,3.7485,3109.1,3108.5,3.17902406]
[1738196236644,4.3918,3109.1,3108.9,0.64333]
[1738196237151,3.7485,3109.1,3108.5,3.17902406]
[1738196237340,3.7485,3109.1,3109.0,0.64332]